Cogmind - Beta 13 @@@ ROGUE MODE // 2024.06.21 @ 23:54:08 Player: COGMIND Result: Destroyed by G-34 Mercenary with Small Laser Performance ------------- Evolutions (1) 500 Regions Visited (2) 400 Robots Destroyed (29) 145 Value Destroyed (609) 609 Prototype IDs (2) 40 Alien Tech Used (0) 0 Bonus (0) 0 TOTAL SCORE: 1694 Bonus ------- None Cogmind --------- Core Integrity 0/400 Matter 179/300 Energy 79/125 System Corruption 0% Temperature Cool (6) Movement Core (800) Ox15 Location -9/Materials Parts ------- > --- POWER (1) -------- Light Ion Engine > --- PROPULSION (2) --- (None) > --- UTILITY (4) ------ High-capacity Storage Unit ECM Suite > --- WEAPON (2) ------- Mini Grenade Launcher Mini Grenade Launcher > --- INVENTORY (20) --- Heat Sink Small Storage Unit Light EM Pulse Cannon Peak State ------------ > --- POWER ------------ Ion Engine > --- PROPULSION ------- Light Treads Light Treads > --- UTILITY ---------- High-capacity Storage Unit Terrain Scanner ECM Suite Light Armor Plating > --- WEAPON ----------- Light Assault Rifle Mini Grenade Launcher > --- INVENTORY -------- Light Ion Engine Heat Sink Small Storage Unit Light EM Pulse Cannon Light Assault Rifle Mini Grenade Launcher [Rating: 10] Favorites ----------- Power Ion Engine Engine Ion Engine Propulsion Light Treads Treads Light Treads Utility Small Storage Unit Device Sensor Array Storage Small Storage Unit Protection Light Armor Plating Weapon Light Assault Rifle Energy Gun EM Pulse Gun Energy Cannon Light EM Pulse Cannon Ballistic Gun Light Assault Rifle Launcher Mini Grenade Launcher Build | -11 -10 -9 ------- Run | Yrd Mat Mat Slots Evolved 2 | . . 2 Power . | . . . Propulsion . | . . . Utility 2 | . . 2 Weapon . | . . . Parts Attached 25 | 6 9 10 Power 2 | 1 . 1 Engine 2 | 1 . 1 Core . | . . . Reactor . | . . . Propulsion 2 | 2 . . Treads 2 | 2 . . Leg . | . . . Wheel . | . . . Hover . | . . . Flight . | . . . Utility 10 | 1 5 4 Device 7 | . 4 3 Storage 2 | 1 1 . Processor . | . . . Hackware . | . . . Protection 1 | . . 1 Artifact . | . . . Weapon 11 | 2 4 5 Energy Gun 2 | 1 1 . Energy Cannon 1 | . 1 . Ballistic Gun 4 | 1 1 2 Ballistic Cannon . | . . . Launcher 4 | . 1 3 Special Weapon . | . . . Impact Weapon . | . . . Slashing Weapon . | . . . Piercing Weapon . | . . . Special Melee Weapon . | . . . Unidentified Prototypes . | . . . Parts Lost 8 | . . 8 Power 1 | . . 1 Propulsion 2 | . . 2 Utility 3 | . . 3 Weapon 2 | . . 2 Highest Loss Streak 7 | . . 7 To Critical Strikes . | . . . Average Slot Usage (%) 93 | . 97 87 Engine 12 | . 14 9 Treads 24 | . 28 18 Device 15 | . 11 22 Storage 12 | . 14 11 Protection 1 | . . 3 Energy Cannon 1 | . 2 . Ballistic Gun 22 | . 24 19 Naked Turns . | . . . Heaviest Build 53 | 13 48 53 Greatest Support 40 | 40 40 40 Greatest Overweight (x) 15 | 3 1 15 Average Overweight (x) . | 1 . 1 Largest Inventory Capacity 20 | 8 20 20 Average Capacity 12 | 7 8 20 Most Carried 7 | 4 6 7 Average Carried 4 | 1 4 5 Final Capacity 20 | 8 20 20 Final Carried 6 | . 6 3 Class Distribution -------------------- 100% | Mutant Dominant Class ---------------- Mutant | -10/Materials Mutant | -9/Materials Resources | -11 -10 -9 ----------- Run | Yrd Mat Mat Matter Collected 455 | 205 173 77 Remotely . | . . . Salvage Created 635 | . 232 403 Parts 47 | . 20 27 Haulers Intercepted . | . . . Recyclers Shooed . | . . . Parts Field Recycled . | . . . Retrieved Matter . | . . . Parts Self-Destructed . | . . . Prevented . | . . . Kills | -11 -10 -9 ------- Run | Yrd Mat Mat Combat Hostiles Destroyed 19 | . 11 8 Guns 4 | . 2 2 Cannons 3 | . 3 . AOE 12 | . 6 6 Classes Destroyed 9 | . 4 5 Worker 2 | . . 2 Builder 4 | . . 4 Recycler 1 | . . 1 Operator 1 | . 1 . Watcher 2 | . 1 1 Swarmer 8 | . 8 . Grunt 7 | . 3 4 Duelist 1 | . . 1 Sentry 3 | . . 3 Best Kill Streak 13 | . 5 13 Combat Bots Only 5 | . 5 4 Max Kills in Single Turn 5 | . 4 5 Gunslinging . | . . . Exploded 4 | . 4 2 Melee . | . . . Uniques/NPCs Destroyed . | . . . Combat | -11 -10 -9 -------- Run | Yrd Mat Mat Hostile Shots Fired 130 | . 45 85 Missed 38 | . 14 24 Damage Taken 1357 | . 283 1074 Core 467 | . 61 406 Absorbed by Shields . | . . . Core Remaining (%) 87 | 100 75 . Volleys Fired 51 | . 27 24 Largest 2 | . 2 2 Hottest 76 | . 76 60 Shots Fired 102 | . 54 48 Gun 83 | . 43 40 Cannon 10 | . 10 . Launcher 9 | . 1 8 Special . | . . . Kinetic 76 | . 36 40 Thermal . | . . . Explosive 9 | . 1 8 Electromagnetic 17 | . 17 . Robot Hit Streak 13 | . 5 13 Robot Miss Streak 4 | . 3 4 Penetration Max . | . . . Secondary Targets . | . . . Shots Hit Robots 63 | . 27 36 Core Hits 46 | . 15 31 Critical Kills . | . . . Critical Parts Destroyed . | . . . Critical Strikes 1 | . . 1 Destroy 1 | . . 1 Melee Attacks . | . . . Impact . | . . . Slashing . | . . . Piercing . | . . . Sneak Attacks . | . . . Combat Hostiles . | . . . Follow-up Attacks . | . . . Damage Inflicted 1563 | . 596 967 Guns 432 | . 159 273 Cannons 140 | . 140 . Explosions 991 | . 297 694 Melee . | . . . Ramming . | . . . Kinetic 378 | . 105 273 Thermal 59 | . 59 . Explosive 932 | . 238 694 Electromagnetic 194 | . 194 . Impact . | . . . Slashing . | . . . Piercing . | . . . Highest Corruption . | . . . Average Corruption . | . . . Corruption Purged . | . . . Corruption Blocked . | . . . Overload Shots . | . . . Overflow Damage 21 | . 18 3 Projectiles . | . . . Explosions 21 | . 18 3 Melee . | . . . Knockbacks . | . . . Impact . | . . . Kinetic . | . . . Secondary . | . . . Self-Inflicted Damage 108 | . . 108 Shots 4 | . . 4 Rammed . | . . . Targets Rammed . | . . . Kicked . | . . . Crushed . | . . . Highest Temperature 84 | . 84 19 Average Temperature 21 | . 27 6 Received Heat Transfer 387 | . 54 333 Siege Activations . | . . . Robots Corrupted . | . . . Combat Hostiles . | . . . Parts Fried 2 | . 2 . Impact Corruptions . | . . . Robots Melted . | . . . Combat Hostiles . | . . . Parts Melted . | . . . Heat Transferred 50 | . 50 . Parts Sabotaged . | . . . Parts Stolen . | . . . Parts Stripped . | . . . Power Chain Reactions 1 | . 1 . Alert | -11 -10 -9 ------- Run | Yrd Mat Mat Peak Influence 289 | . 289 185 Initial . | . . . Average 120 | . 171 53 Maximum Alert Level 1 | . 1 . Low Security (%) 83 | 100 72 100 Level 1 16 | . 27 . Level 2 . | . . . Level 3 . | . . . Level 4 . | . . . Level 5 . | . . . High Security . | . . . Max Security . | . . . Squads Dispatched 2 | . 2 . Investigation 1 | . 1 . Extermination . | . . . Reinforcement 1 | . 1 . Assault . | . . . Garrison . | . . . Intercept . | . . . Searches Triggered . | . . . Construction Impeded . | . . . Haulers Reinforced . | . . . Active Scanning Responses . | . . . Cargo Convoy Interrupts . | . . . Stealth | -11 -10 -9 --------- Run | Yrd Mat Mat Distress Signals 1 | . . 1 Communications Jammed . | . . . Distress Signals . | . . . Times Spotted 32 | . 19 13 Peak Tracking Total 6 | . 5 6 Tactical Retreats 1 | . . 1 Traps | -11 -10 -9 ------- Run | Yrd Mat Mat Traps Triggered . | . . . Indirectly . | . . . Trap Hack Attempts . | . . . Triggered . | . . . Disarmed . | . . . Reprogrammed . | . . . Reused . | . . . Traps Extracted . | . . . Installed . | . . . Triggered . | . . . Machines | -11 -10 -9 ---------- Run | Yrd Mat Mat Machines Disabled 2 | . 1 1 Max in Single Turn 1 | . 1 1 Machines Repaired . | . . . Machines Dismantled . | . . . Machines Sabotaged . | . . . Overloaded Fab Kills . | . . . Hacking | -11 -10 -9 --------- Run | Yrd Mat Mat Machines Accessed 2 | . 2 . Terminals 2 | . 2 . Fabricators . | . . . Repair Stations . | . . . Recycling Units . | . . . Scanalyzers . | . . . Garrison Access . | . . . Total Hacks 4 | . 4 . Successful 3 | . 3 . Failed 1 | . 1 . Catastrophic . | . . . Database Lockouts . | . . . Manual . | . . . Terminals 4 | . 4 . Fabricators . | . . . Repair Stations . | . . . Recycling Units . | . . . Scanalyzers . | . . . Garrison Access . | . . . Terminal Hacks 3 | . 3 . Prototype ID Bank 1 | . 1 . Emergency Access Points 1 | . 1 . Zone Layout 1 | . 1 . Fabricator Hacks . | . . . Repair Station Hacks . | . . . Recycling Unit Hacks . | . . . Scanalyzer . | . . . Garrison Access Hacks . | . . . Unauthorized Hacks . | . . . Terminals . | . . . Fabricators . | . . . Repair Stations . | . . . Recycling Units . | . . . Scanalyzers . | . . . Garrison Access . | . . . Data Cores Recovered 1 | . 1 . Used . | . . . Hacking Detections 1 | . 1 . Full Trace Events 1 | . 1 . Feedback Events . | . . . Feedback Blocked . | . . . Robot Schematics Acquired . | . . . Robots Built . | . . . Authchips . | . . . Time . | . . . Total Robot Build Rating . | . . . Part Schematics Acquired . | . . . Parts Built . | . . . Authchips . | . . . Time . | . . . Total Part Build Rating . | . . . Parts Repaired . | . . . Time . | . . . Parts Recycled . | . . . Recycled Matter . | . . . Retrieved Matter . | . . . Retrieved Components . | . . . Parts Scanalyzed . | . . . Part Schematics Acquired . | . . . Parts Damaged . | . . . Bothacking | -11 -10 -9 ------------ Run | Yrd Mat Mat Used RIF Installer . | . . . Robots Hacked . | . . . Non-combat . | . . . Combat . | . . . Robot Hacks Applied . | . . . Relay Couplers Released . | . . . Fabnet Peak Effective % . | . . . Robots Rewired . | . . . Allies Hacked . | . . . Hacks Repelled . | . . . Allies | -11 -10 -9 -------- Run | Yrd Mat Mat Total Allies . | . . . Largest Group . | . . . Highest-Rated Group . | . . . Highest-Rated Ally . | . . . Total Orders . | . . . Ally Attacks . | . . . Total Damage . | . . . Kills . | . . . Allies Corrupted . | . . . Allies Melted . | . . . Intel | -11 -10 -9 ------- Run | Yrd Mat Mat Robot Analysis Total . | . . . Derelict Logs Recovered . | . . . Drone Launches . | . . . Drone Recoveries . | . . . Exploration | -11 -10 -9 ------------- Run | Yrd Mat Mat Turns Passed 1359 | 88 811 460 Spaces Moved 444 | 49 250 145 Core 30 | 27 . 3 Treads 414 | 22 250 142 Legs . | . . . Wheels . | . . . Hover . | . . . Flight . | . . . Fastest Speed 50 | 50 160 240 Average Speed 192 | 157 165 251 Slowest Speed 800 | 200 240 800 Overloaded Moves . | . . . Propulsion Burnouts . | . . . Robots Hopped . | . . . Cave-ins Triggered . | . . . Exploration Rate (%) 17 | 5 31 17 Regions Visited 2 Branch Regions . Pre-discovered Areas . | . . . Known Exits Taken . | . . . Unknown Exits Taken 2 | 1 1 . Scrap Searched . | . . . Spaces Dug . | . . . Terrain Destroyed 57 | . 6 51 Melee . | . . . Projectile . | . . . AOE 57 | . 6 51 Terrain Rammed . | . . . Walls Destroyed . | . . . Machines Disabled . | . . . Actions | -11 -10 -9 --------- Run | Yrd Mat Mat Total 861 | 60 601 200 Wait 319 | . 302 17 Move 442 | 48 249 145 Hop . | . . . Pick Up 19 | 6 10 3 Fast Attach . | . . . Attach 16 | 6 3 7 Detach 2 | . 1 1 Swap 9 | . 6 3 Drop 3 | . 3 . Fire 51 | . 27 24 Melee . | . . . Ram . | . . . Kick . | . . . Crush . | . . . Escape Stasis . | . . . Rewire . | . . . Trap . | . . . Miscellaneous . | . . . Route ------- -11/Scrapyard -10/Materials -9/Materials History --------- Turn | Location | Event 43 | -11/Scrapyard | Discovered new exit (range 16) 89 | -11/Scrapyard | Entered Materials 317 | -10/Materials | Build established: Mutant 679 | -10/Materials | Discovered new exit (range 6) 900 | -10/Materials | Entered another Materials area 900 | -9/Materials | Evolved 2 slots: Utility x2 1319 | -9/Materials | Core integrity fell below 50% 1322 | -9/Materials | Core integrity fell below 20% 1346 | -9/Materials | Lost 7 parts (1p2n2u2w) 1360 | -9/Materials | Destroyed by G-34 Mercenary with Small Laser Last Messages --------------- 01313_ U-05 Engineer lays Concrete. 01314_ Terrain Scanner destroyed. 01314_ Lgt. Armor Plating destroyed. 01314_ U-05 Engineer builds a Wall. 01314_ U-05 Engineer lays Concrete. 01315_ Lgt. Assault Rifle destroyed. 01315_ Critical hit (Burn: +37). 01315_ U-05 Engineer lays Concrete. 01316_ K-01 Serf collects debris. 01316_ U-05 Engineer lays Concrete. 01318_ Y-45 Defender destroyed. 01318_ G-47 Trooper destroyed. 01318_ Destroyed Com. Wheel. 01318_ U-05 Engineer destroyed. 01318_ R-06 Scavenger destroyed. 01318_ U-05 Engineer destroyed. 01320_ The unstable cave ceiling collapses. 01321_ L-31 Rogue destroyed. 01324_ G-34 Mercenary destroyed. 01325_ The unstable cave ceiling collapses. Map ----- +----------------------------------------------------+ | ?????????????????????##! #######???# # | | ?????????????????????#! #???# # | | ????????????????????##! ##### + | | ?????????????????????#! + # | | ?????????????????????#! % ##### # | | ?????????????????????##! ##??# = ##### | | ????????????????????#?##### ##???# #???? | | ??????????????????????????# #????# #???? | | ?????????????????????###### #??#?###+#######???? | | ????????????????????# # ######## ##????????? | | ????????????????????# " # #?????????? | | ????????????????????#""" # #####+#######???? | | ????????????????????#"" # #?# #???? | | ??????????????????#?#""" # ### #???? | | ???????????????????## "" # ### #???? | | ????????????????????#""" # ### !!! #???? | | ????????????????????#""" # # !! #???? | | ???????????????????##""" + + !!! #???? | | ??????????????##?#??# " # # %#???? | | ????????????????????# ### # #??# | | ????????????????????# ### ############??? | | ????????????????????### # #??? ????????? | | ????????????????#???## #????#???????? | | ???????????????#?#?## # r #????????????? | | ???????????????? ??# # %= ####?????????? | | ???????????????????## % @ #?#??????????? | | ?????????????? # l #### #????????????? | | ????????????# #?? #????????????? | | ???????????? % * ###? #??"?????????? | | ??????????? g ##?? #????????????? | | ?????????? g ???? #????????????? | | ?????????? ##+### [ ##??? # ???????????? | | ????????????? ? #???? #????????????? | | ??????????????? " # =?????? ????????????? | | ?????????????? T # ??????? ???????????? | | ??????????????""" " ## ?#? ???????????????? | | ????????????????? ?## ???????????????????? | | ????????????????? ???# # ???????????????????? | | ??????????????????????# # ""???????????????????? | | ??????????????????????# # "????????????????????? | | ??????????????????????? ? ?????????????????????? | | ?????????????????????????????????????????????????? | | ?????????????????????????????????????????????????? | | ?????????????????????????????????????????????????? | | ?????????????????????????????????????????????????? | | ?????????????????????????????????????????????????? | | ?????????????????????????????????????????????????? | | ?????????????????????????????????????????????????? | | ?????????????????????????????????????????????????? | | ?????????????????????????????????????????????????? | +----------------------------------------------------+ Best States ------------- Heat Dissipation 38 Energy Generation 10 Energy Capacity 250 Matter Stores 300 Matter Capacity 300 Sight Range 16 Robot Scan Range 14 Terrain Scan Range 14 Terrain Scan Density 10 ECM Strength 1 Armor Coverage 150 Evasion (%) 40 Recoil Reduction 2 Item Schematics ----------------- None Robot Schematics ------------------ None Fabricated ------------ Nothing Alien Tech Used ----------------- None Achievements -------------- None Challenges ------------ None Game ------ Seed LinearDeuteriumThruster Manual? 0 Play Time 00:18:53 Cumulative 2.2 hours Start 2024.06.21 @ 23:36:16 End 2024.06.21 @ 23:54:08 Sessions 1 Manual Loads 0 Difficulty Rogue Special Mode None Game No. 6 Rogue 6 Adventurer 0 Explorer 0 Win Type - Total 0 Types 0/0/0/0/0/0/0/0/0 Lore% 0 Gallery% 5 Achievement% 4 Wizard Run 0 Options --------- Layout 1 ASCII 0 Keyboard 0 Movement Arrows Keybinds 0 Fullscreen 1 Font 24/Proggy Map View 50x35 Zoom Use 0% Tactical HUD 1 Map Filters NONE Filters NONE Steam 1 RUN: ae7e1a8d-dc02-4062-b2a6-f4b3ff8da146